Cogmind - Beta 13 @@@ ROGUE MODE // 2024.04.06 @ 20:21:01 Player: Aeon PSR Result: Destroyed by S-27 Virus with Autogun Performance ------------- Evolutions (3) 1500 Regions Visited (4) 800 Robots Destroyed (22) 110 Value Destroyed (789) 789 Prototype IDs (3) 60 Alien Tech Used (0) 0 Bonus (0) 0 TOTAL SCORE: 3259 Bonus ------- None Cogmind --------- Core Integrity 0/700 Matter 207/300 Energy 94/100 System Corruption 0% Temperature Cool (0) Movement Treading (160) Location -7/Factory Parts ------- > --- POWER (1) -------- (None) > --- PROPULSION (4) --- Medium Treads > --- UTILITY (5) ------ Improved Targeting Computer Improved Targeting Computer > --- WEAPON (3) ------- (None) > --- INVENTORY (5) ---- Mining Laser Peak State ------------ > --- POWER ------------ Micro Nuclear Core > --- PROPULSION ------- Gravmag System Gravmag System Gravmag System Gravmag System > --- UTILITY ---------- Heat Sink Seismic Detector Melee Analysis Suite Insulated Plating Improved Field Recycling Unit > --- WEAPON ----------- Minigun Heavy Hammer Axe > --- INVENTORY -------- Micro Nuclear Core Insulated Plating Mining Laser [Rating: 40] Favorites ----------- Power Light Ion Engine Engine Light Ion Engine Power Core Nuclear Core Propulsion Light Treads Treads Light Treads Hover Unit Backup Propulsion I Utility Structural Scanner Device Structural Scanner Storage Huge Storage Unit Processor Signal Interpreter Protection Insulated Plating Weapon Light Assault Rifle Energy Gun Gatling Laser Ballistic Gun Light Assault Rifle Ballistic Cannon Improved Light Cannon Impact Weapon Heavy Hammer Slashing Weapon Axe Build | -11 -10 -9 -8 -7 ------- Run | Yrd Mat Mat Mat Fac Slots Evolved 6 | . . 2 2 2 Power . | . . . . . Propulsion 2 | . . . . 2 Utility 3 | . . 2 1 . Weapon 1 | . . . 1 . Parts Attached 46 | 5 6 14 11 10 Power 11 | 1 1 4 3 2 Engine 7 | 1 1 3 1 1 Core 4 | . . 1 2 1 Reactor . | . . . . . Propulsion 8 | 2 . . 3 3 Treads 4 | 2 . . 1 1 Leg . | . . . . . Wheel . | . . . . . Hover 4 | . . . 2 2 Flight . | . . . . . Utility 15 | . 3 5 3 4 Device 4 | . 1 1 1 1 Storage 2 | . . 2 . . Processor 4 | . 1 . 1 2 Hackware . | . . . . . Protection 5 | . 1 2 1 1 Artifact . | . . . . . Weapon 12 | 2 2 5 2 1 Energy Gun 1 | . . . . 1 Energy Cannon . | . . . . . Ballistic Gun 6 | 2 2 1 1 . Ballistic Cannon 1 | . . 1 . . Launcher . | . . . . . Special Weapon . | . . . . . Impact Weapon 3 | . . 3 . . Slashing Weapon 1 | . . . 1 . Piercing Weapon . | . . . . . Special Melee Weapon . | . . . . . Unidentified Prototypes 1 | . . . . 1 Parts Lost 21 | . . 5 1 15 Power 4 | . . 1 1 2 Propulsion 7 | . . 3 . 4 Utility 5 | . . . . 5 Weapon 5 | . . 1 . 4 Highest Loss Streak 15 | . . 4 1 15 To Critical Strikes . | . . . . . Average Slot Usage (%) 82 | . 98 78 78 51 Engine 8 | . 14 9 3 . Core 1 | . . . 5 4 Treads 13 | . 28 8 4 1 Hover 5 | . . 8 5 13 Device 15 | . 13 15 23 8 Processor 6 | . 6 7 8 4 Protection 7 | . 6 7 9 3 Ballistic Gun 14 | . 28 12 2 3 Ballistic Cannon 1 | . . . 6 . Impact Weapon 5 | . . 8 9 5 Naked Turns 12 | . . . . 12 Heaviest Build 89 | 5 10 89 21 21 Greatest Support 40 | 40 40 40 20 36 Greatest Overweight (x) 3 | . . 3 2 3 Average Overweight (x) . | . . . . . Largest Inventory Capacity 25 | 5 5 25 5 5 Average Capacity 5 | 5 5 6 5 5 Most Carried 5 | 5 5 5 5 4 Average Carried 3 | 2 4 4 4 2 Final Capacity 5 | 5 5 5 5 5 Final Carried 5 | 3 5 5 5 1 Class Distribution -------------------- 97% | Mutant Dominant Class ---------------- Mutant | -10/Materials Mutant | -9/Materials Mutant | -8/Materials Mutant | -7/Factory Resources | -11 -10 -9 -8 -7 ----------- Run | Yrd Mat Mat Mat Fac Matter Collected 630 | 250 112 193 41 34 Remotely . | . . . . . Salvage Created 757 | . 127 327 55 248 Parts 43 | . 14 12 7 10 Haulers Intercepted . | . . . . . Recyclers Shooed . | . . . . . Parts Field Recycled . | . . . . . Retrieved Matter . | . . . . . Parts Self-Destructed . | . . . . . Prevented . | . . . . . Kills | -11 -10 -9 -8 -7 ------- Run | Yrd Mat Mat Mat Fac Combat Hostiles Destroyed 21 | . 5 8 1 7 Melee 9 | . . 4 . 5 Guns 7 | . 5 1 . 1 Cannons 1 | . . . 1 . AOE 1 | . . . . 1 Classes Destroyed 5 | . 3 1 . 1 Watcher 1 | . 1 . . . Swarmer 7 | . 3 . . 4 Grunt 6 | . 2 4 . . Sentry 7 | . . 4 1 2 Hunter 1 | . . . . 1 Best Kill Streak 7 | . 3 3 1 7 Combat Bots Only 7 | . 3 3 1 7 Max Kills in Single Turn 1 | . 1 1 1 1 Gunslinging . | . . . . . Exploded 1 | . . . . 1 Melee 1 | . . 1 . 1 Uniques/NPCs Destroyed . | . . . . . Combat | -11 -10 -9 -8 -7 -------- Run | Yrd Mat Mat Mat Fac Hostile Shots Fired 366 | . 25 92 6 243 Missed 115 | . 5 21 2 87 Damage Taken 3248 | . 331 976 57 1884 Core 1063 | . 45 303 . 715 Absorbed by Shields . | . . . . . Regen/Repaired (Parts) 32 | . . 32 . . Core Remaining (%) 76 | 100 82 24 100 . Volleys Fired 56 | . 29 14 2 11 Largest 2 | . 2 2 1 1 Hottest 80 | . 40 40 39 80 Shots Fired 89 | . 58 18 2 11 Gun 87 | . 58 18 . 11 Cannon 2 | . . . 2 . Launcher . | . . . . . Special . | . . . . . Kinetic 81 | . 58 18 2 3 Thermal 8 | . . . . 8 Explosive . | . . . . . Electromagnetic . | . . . . . Robot Hit Streak 8 | . 8 2 1 6 Robot Miss Streak 6 | . 3 4 2 6 Penetration Max . | . . . . . Secondary Targets . | . . . . . Shots Hit Robots 103 | . 36 45 1 21 Core Hits 33 | . 12 8 1 12 Critical Kills . | . . . . . Critical Parts Destroyed 4 | . . 4 . . Critical Strikes 6 | . . 5 1 . Blast 1 | . . . 1 . Smash 5 | . . 5 . . Melee Attacks 67 | . . 49 . 18 Impact 51 | . . 49 . 2 Slashing 16 | . . . . 16 Piercing . | . . . . . Sneak Attacks . | . . . . . Combat Hostiles . | . . . . . Follow-up Attacks 2 | . . . . 2 Damage Inflicted 2413 | . 359 1301 22 731 Guns 579 | . 359 66 . 154 Cannons 22 | . . . 22 . Explosions 45 | . . . . 45 Melee 1767 | . . 1235 . 532 Ramming . | . . . . . Kinetic 447 | . 359 66 22 . Thermal 154 | . . . . 154 Explosive 45 | . . . . 45 Electromagnetic . | . . . . . Impact 1281 | . . 1235 . 46 Slashing 486 | . . . . 486 Piercing . | . . . . . Highest Corruption . | . . . . . Average Corruption . | . . . . . Corruption Purged . | . . . . . Corruption Blocked . | . . . . . Overload Shots . | . . . . . Overflow Damage 262 | . . 215 . 47 Projectiles . | . . . . . Explosions . | . . . . . Melee 262 | . . 215 . 47 Knockbacks 2 | . . 2 . . Impact 2 | . . 2 . . Kinetic . | . . . . . Secondary . | . . . . . Self-Inflicted Damage 180 | . . . . 180 Shots 3 | . . . . 3 Rammed . | . . . . . Targets Rammed . | . . . . . Kicked . | . . . . . Crushed . | . . . . . Highest Temperature 116 | . 18 6 . 116 Average Temperature 27 | . 6 3 . 64 Received Heat Transfer 720 | . 42 486 18 174 Siege Activations . | . . . . . Robots Corrupted . | . . . . . Combat Hostiles . | . . . . . Parts Fried 2 | . . 2 . . Impact Corruptions 11 | . . 11 . . Robots Melted . | . . . . . Combat Hostiles . | . . . . . Parts Melted 1 | . . . . 1 Heat Transferred 350 | . . . . 350 Parts Sabotaged . | . . . . . Parts Stolen . | . . . . . Parts Stripped . | . . . . . Power Chain Reactions . | . . . . . Alert | -11 -10 -9 -8 -7 ------- Run | Yrd Mat Mat Mat Fac Peak Influence 283 | . 239 283 100 158 Initial 52 | . . 52 49 . Average 44 | . 102 130 72 53 Maximum Alert Level 1 | . 1 1 . . Low Security (%) 93 | 100 76 80 100 100 Level 1 6 | . 23 19 . . Level 2 . | . . . . . Level 3 . | . . . . . Level 4 . | . . . . . Level 5 . | . . . . . High Security . | . . . . . Max Security . | . . . . . Squads Dispatched 7 | . 1 2 1 3 Investigation 2 | . . 1 . 1 Extermination . | . . . . . Reinforcement 3 | . 1 1 1 . Assault . | . . . . . Garrison 2 | . . . . 2 Intercept . | . . . . . Searches Triggered . | . . . . . Construction Impeded . | . . . . . Haulers Reinforced . | . . . . . Active Scanning Responses . | . . . . . Cargo Convoy Interrupts . | . . . . . Stealth | -11 -10 -9 -8 -7 --------- Run | Yrd Mat Mat Mat Fac Distress Signals 4 | . 1 3 . . Communications Jammed . | . . . . . Distress Signals . | . . . . . Times Spotted 39 | 1 12 15 2 9 Peak Tracking Total 8 | . 4 8 1 5 Tactical Retreats 1 | . . 1 . . Traps | -11 -10 -9 -8 -7 ------- Run | Yrd Mat Mat Mat Fac Traps Triggered 3 | . 3 . . . Indirectly . | . . . . . Trap Hack Attempts . | . . . . . Triggered . | . . . . . Disarmed . | . . . . . Reprogrammed . | . . . . . Reused . | . . . . . Traps Extracted . | . . . . . Installed . | . . . . . Triggered . | . . . . . Machines | -11 -10 -9 -8 -7 ---------- Run | Yrd Mat Mat Mat Fac Machines Disabled 3 | . . . . 3 Max in Single Turn 2 | . . . . 2 Machines Repaired . | . . . . . Machines Dismantled . | . . . . . Machines Sabotaged . | . . . . . Overloaded Fab Kills . | . . . . . Hacking | -11 -10 -9 -8 -7 --------- Run | Yrd Mat Mat Mat Fac Machines Accessed 7 | . 3 2 1 1 Terminals 6 | . 3 1 1 1 Fabricators . | . . . . . Repair Stations 1 | . . 1 . . Recycling Units . | . . . . . Scanalyzers . | . . . . . Garrison Access . | . . . . . Total Hacks 17 | . 7 5 2 3 Successful 13 | . 6 4 1 2 Failed 4 | . 1 1 1 1 Catastrophic . | . . . . . Database Lockouts . | . . . . . Manual . | . . . . . Terminals 13 | . 7 1 2 3 Fabricators . | . . . . . Repair Stations 4 | . . 4 . . Recycling Units . | . . . . . Scanalyzers . | . . . . . Garrison Access . | . . . . . Terminal Hacks 10 | . 6 1 1 2 Record 6 | . 3 . 1 2 Prototype ID Bank 1 | . . 1 . . Alert Level 1 | . 1 . . . Maintenance Status 1 | . 1 . . . Hauler Manifests 1 | . 1 . . . Fabricator Hacks . | . . . . . Repair Station Hacks 3 | . . 3 . . Scan Component 1 | . . 1 . . Repair 1 | . . 1 . . Refit 1 | . . 1 . . Recycling Unit Hacks . | . . . . . Scanalyzer . | . . . . . Garrison Access Hacks . | . . . . . Unauthorized Hacks . | . . . . . Terminals . | . . . . . Fabricators . | . . . . . Repair Stations . | . . . . . Recycling Units . | . . . . . Scanalyzers . | . . . . . Garrison Access . | . . . . . Data Cores Recovered . | . . . . . Used . | . . . . . Hacking Detections 4 | . 2 . 1 1 Full Trace Events 1 | . . . . 1 Feedback Events . | . . . . . Feedback Blocked . | . . . . . Robot Schematics Acquired . | . . . . . Robots Built . | . . . . . Authchips . | . . . . . Time . | . . . . . Total Robot Build Rating . | . . . . . Part Schematics Acquired . | . . . . . Parts Built . | . . . . . Authchips . | . . . . . Time . | . . . . . Total Part Build Rating . | . . . . . Parts Repaired 1 | . . 1 . . Time 26 | . . 26 . . Parts Recycled . | . . . . . Recycled Matter . | . . . . . Retrieved Matter . | . . . . . Retrieved Components . | . . . . . Parts Scanalyzed . | . . . . . Part Schematics Acquired . | . . . . . Parts Damaged . | . . . . . Bothacking | -11 -10 -9 -8 -7 ------------ Run | Yrd Mat Mat Mat Fac Used RIF Installer . | . . . . . Robots Hacked . | . . . . . Non-combat . | . . . . . Combat . | . . . . . Robot Hacks Applied . | . . . . . Relay Couplers Released . | . . . . . Fabnet Peak Effective % . | . . . . . Robots Rewired . | . . . . . Allies Hacked . | . . . . . Hacks Repelled . | . . . . . Allies | -11 -10 -9 -8 -7 -------- Run | Yrd Mat Mat Mat Fac Total Allies . | . . . . . Largest Group . | . . . . . Highest-Rated Group . | . . . . . Highest-Rated Ally . | . . . . . Total Orders . | . . . . . Ally Attacks . | . . . . . Total Damage . | . . . . . Kills . | . . . . . Allies Corrupted . | . . . . . Allies Melted . | . . . . . Intel | -11 -10 -9 -8 -7 ------- Run | Yrd Mat Mat Mat Fac Robot Analysis Total . | . . . . . Derelict Logs Recovered . | . . . . . Drone Launches . | . . . . . Drone Recoveries . | . . . . . Exploration | -11 -10 -9 -8 -7 ------------- Run | Yrd Mat Mat Mat Fac Turns Passed 4187 | 2351 590 646 406 194 Spaces Moved 1268 | 379 305 241 223 120 Core 81 | 19 . 43 . 19 Treads 901 | 360 305 94 121 21 Legs . | . . . . . Wheels . | . . . . . Hover 286 | . . 104 102 80 Flight . | . . . . . Fastest Speed 48 | 50 160 76 56 48 Average Speed 153 | 154 160 172 169 70 Slowest Speed 320 | 160 160 320 240 200 Overloaded Moves . | . . . . . Propulsion Burnouts . | . . . . . Robots Hopped . | . . . . . Cave-ins Triggered . | . . . . . Exploration Rate (%) 27 | 43 48 23 20 3 Regions Visited 4 Branch Regions . Pre-discovered Areas . | . . . . . Known Exits Taken 1 | . 1 . . . Unknown Exits Taken 3 | 1 . 1 1 . Scrap Searched . | . . . . . Spaces Dug . | . . . . . Terrain Destroyed 45 | . . . 1 44 Melee . | . . . . . Projectile 1 | . . . 1 . AOE 44 | . . . . 44 Terrain Rammed . | . . . . . Walls Destroyed . | . . . . . Machines Disabled . | . . . . . Actions | -11 -10 -9 -8 -7 --------- Run | Yrd Mat Mat Mat Fac Total 3316 | 2145 356 376 249 190 Wait 1815 | 1754 6 31 . 24 Move 1264 | 378 304 240 222 120 Hop . | . . . . . Pick Up 40 | 8 7 14 5 6 Fast Attach 9 | . 1 1 7 . Attach 31 | 5 4 11 1 10 Detach 3 | . . 3 . . Swap 6 | . 1 2 3 . Drop 27 | . 4 11 9 3 Fire 56 | . 29 14 2 11 Melee 65 | . . 49 . 16 Ram . | . . . . . Kick . | . . . . . Crush . | . . . . . Escape Stasis . | . . . . . Rewire . | . . . . . Trap . | . . . . . Miscellaneous . | . . . . . Route ------- -11/Scrapyard -10/Materials (discovered 2 exits: *Mat / [*Min]) -9/Materials -8/Materials -7/Factory History --------- Turn | Location | Event 3 | -11/Scrapyard | Discovered new exit (range 15) 2147 | -11/Scrapyard | Assembled infested the area 2352 | -11/Scrapyard | Entered Materials 2353 | -10/Materials | Build established: Mutant 2537 | -10/Materials | Discovered new exit (range 12) 2878 | -10/Materials | Discovered new exit (range 16) 2940 | -10/Materials | Identified exit to Materials 2942 | -10/Materials | Entered another Materials area 2942 | -9/Materials | Evolved 2 slots: Utility x2 3218 | -9/Materials | Core integrity fell below 50% 3245 | -9/Materials | Lost 4 parts (1p2n1w) 3315 | -9/Materials | Repaired Ion Engine 3492 | -9/Materials | Discovered new exit (range 5) 3588 | -9/Materials | Entered another Materials area 3588 | -8/Materials | Evolved 2 slots: Utility x1, Weapon x1 3973 | -8/Materials | Discovered new exit (range 10) 3994 | -8/Materials | Entered Factory 3994 | -7/Factory | Evolved 2 slots: Propulsion x2 4066 | -7/Factory | Garrison activated, responded to threat 4119 | -7/Factory | Core integrity fell below 50% 4140 | -7/Factory | Core integrity fell below 20% 4160 | -7/Factory | Destroyed 7 combat bots 4168 | -7/Factory | Lost 15 parts (2p4n5u4w) 4188 | -7/Factory | Destroyed by S-27 Virus with Autogun Last Messages --------------- Axe destroyed. Mic. Nuclear Core destroyed. S-27 Virus destroyed. Hvy. Hammer destroyed. Y-54 Guardian heat damages Imp. Heat Sink. Gatling Laser destroyed. Nuclear Reactor explodes. Gatling Laser melted. Y-54 Guardian destroyed. The unstable cave ceiling collapses. Acquired Prototype Engine. Identified Hvy. Deuterium Engine. Dropped Faulty Hvy. Deuterium Engine. Nuclear Reactor explodes. Acquired Med. Treads. Acquired Imp. Targeting Computer. S-27 Virus emerges from the garrison. The unstable cave ceiling collapses. Extracted 8 matter. The unstable cave ceiling collapses. Map ----- +----------------------------------------------------+ | ?????????????????????????????????????????????????? | | ?????????????????????????????????????????????????? | | ?????????????????????????????????????????????????? | | ?????????????????????????????????????????????????? | | ?????????????????????????????????????????????????? | | ?????????????????????????????????????????????????? | | ?????????????????????????????????????????????????? | | ?????????????????????????????????????????????????? | | ?????????????????????????????????????????????????? | | ###########??????????????????????????????????????? | | ###########??????????????????????????????????????? | | # ##??????????????????????????????????????? | | # """ ##??????????????????????????????????????? | | # """ ##???????????#####??????????????????????? | | # """ ##???????????# ??????????????????????? | | # ##???????????# ???? ????????????????? | | # """ ##?????? ???# ??? ????????????????? | | # """ ##?????? ???# ????????????????? | | # """ ##?????? ???# """ """ #?????????????? | | # #### # """ """ #?????????????? | | ###+#############+##### """ """ #?????????????? | | ???????????????? | | !?????????????????? | | / ???????????????????? | | #????????????????????? | | s @ #????????????????????? | | ##########+##### ###s#########+#?????????????? | | ## # # #?????????????? | | ## ! """"" # + #?????????????? | | ##"" """"" # # #?????????????? | | ##"T [ """ + #*! #?????????????? | | ##"" [! # #*! "" "" #?????????????? | | ## + !#*! ""G"" #?????????????? | | ############# # # #######?????????????? | | ########## =[* #???????????????????? | | ?????????# """ #???????????????????? | | ?????????# """ #???????????????????? | | ?????????# """ % #???????????????????? | | ?????????# ! #???????????????????? | | ?????????# [ [ #???????????????????? | | ?????????# #???????????????????? | | ?????????#### ## #???????????????????? | | | | | | | | | | | | | | | | | +----------------------------------------------------+ Best States ------------- Heat Dissipation 44 Energy Generation 15 Energy Capacity 265 Matter Stores 300 Matter Capacity 300 Sight Range 16 Terrain Scan Density 10 Armor Coverage 300 Resistance: EM 15 Evasion (%) 55 Targeting Accuracy 12 Melee Accuracy 5 Recoil Reduction 2 Item Schematics ----------------- None Robot Schematics ------------------ None Fabricated ------------ Nothing Alien Tech Used ----------------- None Achievements -------------- Curiosity Killed The Cat Made in Tau Ceti IV Shopping List Challenges ------------ None Game ------ Seed DroneArmoredLink Manual? 0 Play Time 00:43:54 Cumulative 3.1 hours Start 2024.04.02 @ 23:47:57 End 2024.04.06 @ 20:21:01 Sessions 7 Manual Loads 0 Difficulty Rogue Special Mode None Game No. 4 Rogue 4 Adventurer 0 Explorer 0 Win Type - Total 0 Types 0/0/0/0/0/0/0/0/0 Lore% 4 Gallery% 6 Achievement% 7 Wizard Run 0 Options --------- Layout 1 ASCII 0 Keyboard 0 Movement Mouse Keybinds 0 Fullscreen 2 Font 24/Crisp Map View 50x35 Zoom Use 0% Tactical HUD 0 Map Filters NONE Filters NONE Steam 1 RUN: a227596a-4205-428b-b256-6d242fde122c